Cogmind - Beta 14 @@@ ROGUE MODE // 2024.09.01 @ 15:06:50 Player: VLAM Result: Destroyed by Y-45 Defender with Beam Rifle Performance ------------- Evolutions (2) 1000 Regions Visited (5) 1000 Robots Destroyed (43) 215 Value Destroyed (1252) 1252 Prototype IDs (2) 40 Alien Tech Used (0) 0 Bonus (260) 260 TOTAL SCORE: 3767 Bonus ------- High Alert Combat Kills 60 Entered Garrisons 200 Cogmind --------- Core Integrity 0/550 Matter 7/300 Energy 91/100 System Corruption 3% Temperature Cool (9) Movement Core (150) Ox2 Location -8/Materials Parts ------- > --- POWER (3) -------- (None) > --- PROPULSION (3) --- (None) > --- UTILITY (3) ------ Improved Light Armor Plating Improved Light Armor Plating > --- WEAPON (2) ------- Shotgun > --- INVENTORY (5) ---- Flight Unit Flight Unit Flight Unit Recoil Stabilizer Peak State ------------ > --- POWER ------------ Ion Engine Ion Engine Light Nuclear Core > --- PROPULSION ------- Light Treads Light Treads Improved Treads > --- UTILITY ---------- Small Storage Unit Improved Weapon Shielding Improved Light Armor Plating > --- WEAPON ----------- Heavy Assault Rifle Minigun > --- INVENTORY -------- Improved Treads Improved Treads Improved Treads Improved Treads Improved Targeting Computer High-powered Shotgun Gauss Rifle Grenade Launcher [Rating: 22] Favorites ----------- Power Ion Engine Engine Ion Engine Power Core Light Nuclear Core Propulsion Light Treads Treads Light Treads Leg Aluminum Leg Flight Unit Flight Unit Utility Small Storage Unit Device Recoil Stabilizer Storage Small Storage Unit Protection Improved Light Armor Plating Weapon Assault Rifle Energy Gun EM Pulse Gun Energy Cannon EM Pulse Cannon Ballistic Gun Assault Rifle Launcher Improved Grenade Launcher Build | -11 -10 -9 -8 -8 -8 ------- Run | Yrd Mat Mat Mat Gar Mat Slots Evolved 4 | . . 2 2 . . Power 2 | . . 1 1 . . Propulsion 1 | . . 1 . . . Utility 1 | . . . 1 . . Weapon . | . . . . . . Parts Attached 58 | 6 1 11 16 21 3 Power 12 | 1 . 2 3 5 1 Engine 10 | 1 . 2 2 4 1 Core 2 | . . . 1 1 . Reactor . | . . . . . . Propulsion 19 | 2 . 7 4 6 . Treads 9 | . . 3 4 2 . Leg 6 | 2 . 4 . . . Wheel . | . . . . . . Hover . | . . . . . . Flight 4 | . . . . 4 . Utility 12 | 1 1 1 4 5 . Device 4 | . . 1 . 3 . Storage 1 | 1 . . . . . Processor . | . . . . . . Hackware . | . . . . . . Protection 7 | . 1 . 4 2 . Artifact . | . . . . . . Weapon 15 | 2 . 1 5 5 2 Energy Gun 1 | 1 . . . . . Energy Cannon 1 | . . . . 1 . Ballistic Gun 7 | 1 . 1 3 1 1 Ballistic Cannon . | . . . . . . Launcher 6 | . . . 2 3 1 Special Weapon . | . . . . . . Impact Weapon . | . . . . . . Slashing Weapon . | . . . . . . Piercing Weapon . | . . . . . . Special Melee Weapon . | . . . . . . Unidentified Prototypes . | . . . . . . Corrupted Parts 2 | . . 1 . 1 . System Corruption 5 | . . 2 . 3 . Parts Lost 34 | . . . 11 14 9 Power 11 | . . . 4 5 2 Propulsion 9 | . . . 3 3 3 Utility 6 | . . . 2 3 1 Weapon 8 | . . . 2 3 3 Highest Loss Streak 14 | . . . 6 14 3 To Critical Strikes . | . . . . . . Average Slot Usage (%) 83 | . 98 93 80 73 64 Engine 14 | . 14 21 13 9 5 Treads 13 | . . 7 24 15 14 Leg 9 | . 28 19 . . . Flight 2 | . . . . 9 8 Device 4 | . . 3 4 9 5 Storage 8 | . 14 11 9 2 . Protection 9 | . 12 7 8 11 18 Energy Gun 3 | . 14 7 . . . Ballistic Gun 10 | . 14 14 14 3 . Launcher 4 | . . . 3 11 11 Peak Build Rating 22 | 6 7 12 22 19 21 Average Rating 12 | 2 6 9 16 16 15 On Entrance 10 | . 6 7 12 16 19 Naked Turns . | . . . . . . Heaviest Build 31 | 14 15 21 31 23 24 Greatest Support 66 | 20 20 63 66 66 40 Greatest Overweight (x) 4 | . . . 1 4 3 Average Overweight (x) . | . . . . . . Largest Inventory Capacity 8 | 8 8 8 8 8 5 Average Capacity 7 | 5 8 8 8 5 5 Most Carried 8 | 6 8 8 8 8 5 Average Carried 6 | 3 7 7 7 5 4 Final Capacity 8 | 8 8 8 8 5 5 Final Carried 8 | 6 8 8 8 5 4 Class Distribution -------------------- 93% | Mutant 6% | Scavenger-Mutant Dominant Class ---------------- Mutant | -10/Materials Mutant | -9/Materials Mutant | -8/Materials Mutant | -8/Garrison Mutant | -8/Materials Resources | -11 -10 -9 -8 -8 -8 ----------- Run | Yrd Mat Mat Mat Gar Mat Matter Collected 1185 | 226 53 148 384 369 5 Remotely . | . . . . . . Salvage Created 1173 | . 69 196 620 283 5 Parts 92 | . 7 20 43 19 3 Haulers Intercepted . | . . . . . . Recyclers Shooed . | . . . . . . Parts Field Recycled . | . . . . . . Retrieved Matter . | . . . . . . Parts Self-Destructed . | . . . . . . Prevented . | . . . . . . Kills | -11 -10 -9 -8 -8 -8 ------- Run | Yrd Mat Mat Mat Gar Mat Combat Hostiles Destroyed 35 | . 1 6 16 12 . Guns 21 | . 1 5 8 7 . AOE 14 | . . 1 8 5 . Classes Destroyed 7 | . 2 1 4 . . Builder 3 | . . . 3 . . Mechanic 1 | . . . 1 . . Watcher 4 | . 1 2 . . 1 Swarmer 14 | . . 4 4 6 . Grunt 12 | . 1 2 5 4 . Sentry 6 | . . . 5 1 . Hunter 3 | . . . 2 1 . Best Kill Streak 7 | . 1 5 7 6 1 Combat Bots Only 6 | . 1 4 4 6 . Max Kills in Single Turn 2 | . 1 2 2 2 1 Gunslinging 1 | . . 1 . 1 . Exploded 2 | . . 1 2 2 . Melee . | . . . . . . Uniques/NPCs Destroyed . | . . . . . . Combat | -11 -10 -9 -8 -8 -8 -------- Run | Yrd Mat Mat Mat Gar Mat Hostile Shots Fired 456 | . 3 42 156 183 72 Missed 140 | . 1 12 45 60 22 Damage Taken 4411 | . 21 287 1743 1581 779 Core 622 | . . 59 173 261 129 Absorbed by Shields . | . . . . . . Redirected to Shielding 139 | . 6 32 101 . . Regen/Repaired (Parts) 16 | . . 16 . . . Core Remaining (%) 95 | 100 100 85 . . . Volleys Fired 97 | . 3 19 45 25 5 Largest 2 | . 2 2 2 2 2 Hottest 91 | . 60 60 55 91 72 Shots Fired 183 | . 6 38 84 47 8 Gun 142 | . 6 38 69 26 3 Cannon 7 | . . . . 7 . Launcher 34 | . . . 15 14 5 Special . | . . . . . . Kinetic 124 | . 3 23 69 26 3 Thermal . | . . . . . . Explosive 34 | . . . 15 14 5 Electromagnetic 25 | . 3 15 . 7 . Robot Hit Streak 12 | . 4 4 12 4 2 Robot Miss Streak 8 | . 1 3 4 8 1 Penetration Max . | . . . . . . Secondary Targets 6 | . . 1 2 3 . Max Gunslinging Chain 1 | . . 1 1 1 . Shots Hit Robots 106 | . 4 20 52 25 5 Core Hits 75 | . 3 9 37 20 6 Critical Kills . | . . . . . . Critical Parts Destroyed . | . . . . . . Critical Strikes . | . . . . . . Melee Attacks . | . . . . . . Impact . | . . . . . . Slashing . | . . . . . . Piercing . | . . . . . . Sneak Attacks . | . . . . . . Combat Hostiles . | . . . . . . Follow-up Attacks . | . . . . . . Damage Inflicted 2704 | . 59 293 1358 825 169 Guns 1266 | . 59 257 687 225 38 Cannons 102 | . . . . 102 . Explosions 1335 | . . 36 671 497 131 Melee . | . . . . . . Ramming 1 | . . . . 1 . Kinetic 1126 | . 22 154 687 225 38 Thermal 36 | . . 36 . . . Explosive 1299 | . . . 671 497 131 Electromagnetic 242 | . 37 103 . 102 . Impact . | . . . . . . Slashing . | . . . . . . Piercing . | . . . . . . Highest Corruption 3 | . . 2 . 3 3 Average Corruption 2 | . . 2 . 3 3 Corruption Purged . | . . . . . . Corruption Blocked . | . . . . . . Effects 14 | . . 4 . 4 6 Message Errors 3 | . . . . 1 2 Matter Fused 4 | . . 2 . 1 1 Energy Discharges 1 | . . . . . 1 Data Loss (minor) 2 | . . 1 . 1 . Data Loss (major) 1 | . . . . 1 . Misfires 1 | . . . . . 1 Alerts 2 | . . 1 . . 1 Overload Shots . | . . . . . . Overflow Damage 14 | . . . 10 2 2 Projectiles . | . . . . . . Explosions 14 | . . . 10 2 2 Melee . | . . . . . . Knockbacks . | . . . . . . Impact . | . . . . . . Kinetic . | . . . . . . Secondary . | . . . . . . Self-Inflicted Damage 238 | . . . 146 92 . Shots 6 | . . . 4 2 . Rammed 1 | . . . . 1 . Targets Rammed 1 | . . . . 1 . Kicked . | . . . . . . Crushed . | . . . . . . Highest Temperature 284 | . 6 42 118 284 18 Average Temperature 44 | . 5 16 32 80 6 Received Heat Transfer 1413 | . 12 33 558 522 288 Effects 1 | . . . . 1 . Interference 1 | . . . . 1 . Siege Activations . | . . . . . . Robots Corrupted . | . . . . . . Combat Hostiles . | . . . . . . Parts Fried . | . . . . . . Impact Corruptions . | . . . . . . Robots Melted . | . . . . . . Combat Hostiles . | . . . . . . Parts Melted . | . . . . . . Heat Transferred . | . . . . . . Parts Sabotaged . | . . . . . . Parts Stolen . | . . . . . . Parts Stripped . | . . . . . . Power Chain Reactions 1 | . . 1 . . . Alert | -11 -10 -9 -8 -8 -8 ------- Run | Yrd Mat Mat Mat Gar Mat Peak Influence 653 | . 77 226 417 653 392 Initial 317 | . . 32 54 271 317 Average 219 | . 39 70 224 490 356 Maximum Alert Level 2 | . . 1 2 2 1 Low Security (%) 50 | 100 100 99 26 . . Level 1 35 | . . . 71 37 100 Level 2 14 | . . . 1 62 . Level 3 . | . . . . . . Level 4 . | . . . . . . Level 5 . | . . . . . . High Security . | . . . . . . Max Security . | . . . . . . Squads Dispatched 5 | . . 2 2 . 1 Investigation 1 | . . . . . 1 Extermination . | . . . . . . Reinforcement 2 | . . 2 . . . Assault . | . . . . . . Garrison 2 | . . . 2 . . Intercept . | . . . . . . Searches Triggered . | . . . . . . Construction Impeded . | . . . . . . Haulers Reinforced . | . . . . . . Active Scanning Responses . | . . . . . . Cargo Convoy Interrupts . | . . . . . . Stealth | -11 -10 -9 -8 -8 -8 --------- Run | Yrd Mat Mat Mat Gar Mat Distress Signals 2 | . . 1 . . 1 Communications Jammed . | . . . . . . Distress Signals . | . . . . . . Times Spotted 67 | . 4 15 22 19 7 Peak Tracking Total 8 | . 2 5 6 8 6 Tactical Retreats 8 | . . 1 1 4 2 Traps | -11 -10 -9 -8 -8 -8 ------- Run | Yrd Mat Mat Mat Gar Mat Traps Triggered . | . . . . . . Indirectly . | . . . . . . Trap Hack Attempts . | . . . . . . Triggered . | . . . . . . Disarmed . | . . . . . . Reprogrammed . | . . . . . . Reused . | . . . . . . Traps Extracted . | . . . . . . Installed . | . . . . . . Triggered . | . . . . . . Machines | -11 -10 -9 -8 -8 -8 ---------- Run | Yrd Mat Mat Mat Gar Mat Machines Disabled 3 | . . . 2 . 1 Max in Single Turn 1 | . . . 1 . 1 Machines Repaired . | . . . . . . Machines Dismantled . | . . . . . . Machines Sabotaged . | . . . . . . Overloaded Fab Kills . | . . . . . . Hacking | -11 -10 -9 -8 -8 -8 --------- Run | Yrd Mat Mat Mat Gar Mat Machines Accessed 8 | . 2 2 3 . 1 Terminals 3 | . 2 . . . 1 Fabricators . | . . . . . . Repair Stations 2 | . . 1 1 . . Recycling Units . | . . . . . . Scanalyzers 2 | . . 1 1 . . Garrison Access 1 | . . . 1 . . Total Hacks 17 | . 2 4 6 . 5 Successful 11 | . 2 4 3 . 2 Failed 6 | . . . 3 . 3 Catastrophic . | . . . . . . Database Lockouts . | . . . . . . Manual . | . . . . . . Terminals 7 | . 2 . . . 5 Fabricators . | . . . . . . Repair Stations 4 | . . 2 2 . . Recycling Units . | . . . . . . Scanalyzers 5 | . . 2 3 . . Garrison Access 1 | . . . 1 . . Terminal Hacks 4 | . 2 . . . 2 Record 1 | . 1 . . . . Prototype ID Bank 1 | . 1 . . . . Dispatch Records 1 | . . . . . 1 Zone Layout 1 | . . . . . 1 Fabricator Hacks . | . . . . . . Repair Station Hacks 2 | . . 2 . . . Scan Component 1 | . . 1 . . . Repair 1 | . . 1 . . . Recycling Unit Hacks . | . . . . . . Scanalyzer 4 | . . 2 2 . . Insert Component 2 | . . 1 1 . . Analyze 2 | . . 1 1 . . Garrison Access Hacks 1 | . . . 1 . . Unlock Access 1 | . . . 1 . . Unauthorized Hacks . | . . . . . . Terminals . | . . . . . . Fabricators . | . . . . . . Repair Stations . | . . . . . . Recycling Units . | . . . . . . Scanalyzers . | . . . . . . Garrison Access . | . . . . . . Data Cores Recovered . | . . . . . . Used . | . . . . . . Hacking Detections 4 | . . 1 2 . 1 Full Trace Events 1 | . . . . . 1 Feedback Events . | . . . . . . Feedback Blocked . | . . . . . . Robot Schematics Acquired . | . . . . . . Robots Built . | . . . . . . Authchips . | . . . . . . Time . | . . . . . . Total Robot Build Rating . | . . . . . . Part Schematics Acquired 2 | . . 1 1 . . Parts Built . | . . . . . . Authchips . | . . . . . . Time . | . . . . . . Total Part Build Rating . | . . . . . . Parts Repaired 1 | . . 1 . . . Time 26 | . . 26 . . . Parts Recycled . | . . . . . . Recycled Matter . | . . . . . . Retrieved Matter . | . . . . . . Retrieved Components . | . . . . . . Parts Scanalyzed 2 | . . 1 1 . . Part Schematics Acquired 2 | . . 1 1 . . Parts Damaged . | . . . . . . Bothacking | -11 -10 -9 -8 -8 -8 ------------ Run | Yrd Mat Mat Mat Gar Mat Used RIF Installer . | . . . . . . Robots Hacked . | . . . . . . Non-combat . | . . . . . . Combat . | . . . . . . Robot Hacks Applied . | . . . . . . Relay Couplers Released . | . . . . . . Fabnet Peak Effective % . | . . . . . . Robots Rewired . | . . . . . . Allies Hacked . | . . . . . . Hacks Repelled . | . . . . . . Allies | -11 -10 -9 -8 -8 -8 -------- Run | Yrd Mat Mat Mat Gar Mat Total Allies . | . . . . . . Largest Group . | . . . . . . Highest-Rated Group . | . . . . . . Highest-Rated Ally . | . . . . . . Total Orders . | . . . . . . Ally Attacks . | . . . . . . Total Damage . | . . . . . . Kills . | . . . . . . Allies Corrupted . | . . . . . . Allies Melted . | . . . . . . Intel | -11 -10 -9 -8 -8 -8 ------- Run | Yrd Mat Mat Mat Gar Mat Robot Analysis Total . | . . . . . . Derelict Logs Recovered . | . . . . . . Drone Launches . | . . . . . . Drone Recoveries . | . . . . . . Exploration | -11 -10 -9 -8 -8 -8 ------------- Run | Yrd Mat Mat Mat Gar Mat Turns Passed 2215 | 98 248 620 594 490 165 Spaces Moved 1271 | 74 161 351 263 327 95 Core 24 | 11 . . . 5 8 Treads 614 | . . 73 263 191 87 Legs 502 | 63 161 278 . . . Wheels . | . . . . . . Hover . | . . . . . . Flight 131 | . . . . 131 . Fastest Speed 34 | 50 120 120 160 34 100 Average Speed 131 | 109 120 128 160 116 156 Slowest Speed 250 | 120 120 160 240 250 200 Overloaded Moves . | . . . . . . Propulsion Burnouts . | . . . . . . Robots Hopped 1 | . . . . 1 . Cave-ins Triggered . | . . . . . . Exploration Rate (%) 23 | 4 24 36 25 34 15 Regions Visited 5 Branch Regions . Pre-discovered Areas . | . . . . . . Known Exits Taken 1 | . . . 1 . . Unknown Exits Taken 3 | 1 1 1 . . . Scrap Searched . | . . . . . . Spaces Dug 6 | . . . 6 . . Terrain Destroyed 262 | . . 5 118 100 39 Melee . | . . . . . . Projectile . | . . . . . . AOE 262 | . . 5 118 100 39 Terrain Rammed . | . . . . . . Walls Destroyed . | . . . . . . Machines Disabled . | . . . . . . Actions | -11 -10 -9 -8 -8 -8 --------- Run | Yrd Mat Mat Mat Gar Mat Total 1630 | 89 210 488 355 385 103 Wait 153 | 1 42 86 22 2 . Move 1264 | 73 160 350 262 324 95 Hop 1 | . . . . 1 . Pick Up 30 | 9 3 7 6 5 . Fast Attach 32 | 3 1 5 8 13 2 Attach 13 | 3 . 4 4 1 1 Detach 4 | . . 4 . . . Swap 13 | . . 2 4 7 . Drop 22 | . 1 11 4 6 . Fire 97 | . 3 19 45 25 5 Melee . | . . . . . . Ram 1 | . . . . 1 . Kick . | . . . . . . Crush . | . . . . . . Escape Stasis . | . . . . . . Rewire . | . . . . . . Trap . | . . . . . . Miscellaneous . | . . . . . . Route ------- -11/Scrapyard -10/Materials -9/Materials -8/Materials -8/Garrison -8/Materials (discovered 1 exit: [Fac]) History --------- Turn | Location | Event 56 | -11/Scrapyard | Discovered new exit (range 15) 99 | -11/Scrapyard | Entered Materials 313 | -10/Materials | Build established: Mutant 341 | -10/Materials | Discovered new exit (range 3) 347 | -10/Materials | Entered another Materials area 347 | -9/Materials | Evolved 2 slots: Power x1, Propulsion x1 708 | -9/Materials | Repaired Ion Engine 964 | -9/Materials | Discovered new exit (range 3) 967 | -9/Materials | Entered another Materials area 967 | -8/Materials | Evolved 2 slots: Power x1, Utility x1 1343 | -8/Materials | Lost 6 parts (3p2n1w) 1427 | -8/Materials | Identified exit to Garrison 1443 | -8/Materials | Garrison activated, responded to threat 1505 | -8/Materials | Lost 4 parts (1p1n1u1w) 1561 | -8/Materials | Entered Garrison 1589 | -8/Garrison | Triggered checkpoint 1678 | -8/Garrison | Core integrity fell below 50% 1727 | -8/Garrison | Triggered checkpoint 1758 | -8/Garrison | Lost 14 parts (5p3n3u3w) 2027 | -8/Garrison | Discovered new exit (range 15) 2051 | -8/Garrison | Entered Materials 2071 | -8/Materials | Core integrity fell below 20% 2144 | -8/Materials | Lost 3 parts (1p2w) 2194 | -8/Materials | Discovered new exit (range 10) 2196 | -8/Materials | Lost 3 parts (1p1n1u) 2216 | -8/Materials | Destroyed by Y-45 Defender with Beam Rifle Last Messages --------------- 02194_ Connecting with Terminal... 02194_ Current location identified: Materials 02194_ EXIT=FOUND >>Layout(Zone) Retrieving Zone 3A layout... Downloaded map data. >>Enumerate(Squads) Retrieving dispatch records... Found 25 active squads: 10x Security 4x Surveillance 5x Patrol 6x Transport 02194_ ALERT: Suspicious activity at Terminal M005. Dispatching Investigation squad. 02199_ Lgt. Treads destroyed. 02200_ Imp. Grenade Launcher destroyed. 02202_ Flight Unit destroyed. 02205_ System corrupted: Energy discharge (-38). 02207_ Acquired Shotgun. Map ----- +----------------------------------------------------+ | ????????? #?# #????????? | | ????????? #?# #????????? | | ????????? #?# #????????? | | ????????? #?# #????????? | | ?????????# ### #????????? | | ????????? ## ###??????? | | ????????? #??????? | | ????????? < #??????? | | ????????? #######? | | ????????? ###+#### """ #? | | ????########### T # """ #? | | ????? # # """ #? | | ?????? # """ # #? | | ????? """ ! # """ # #? | | ????#""""" # """ # "T" #? | | ????#""""" = # # #? | | ????#""""" #########/####? | | ????# """ + #???? | | ????# # #???? | | ????####+###### #???? | | ??????# Y #???? | | ??????# ##############/####? | | ??????# ########???# Yg #? | | ??????# # #???# ! #? | | ??##### # #???# #? | | ??+ # #####! @=#? | | ??#### # # # [[!#? | | ?????# + ##### = [=!#? | | ?????# # #???########? | | ?????# ########???????????? | | ?????# #?????????????????? | | ?????# #?????????????????? | | +##### #?????????????????? | | %" #?????????????????? | | " #?????????????????? | | ! #?????????????????? | | #?????????????????? | | #?????????????????? | | #?????????????????? | | ???????????????? | | ?????????????? | | #####+#????????????? | | #??????????????????? | | #??????????????????? | | #??????????????????? | | #??????????????????? | | ##/#######??????????????????? | | ? ????????????????????????? | | ? ????????????????????????? | | ? ????????????????????????? | +----------------------------------------------------+ Best States ------------- Heat Dissipation 31 Energy Generation 24 Energy Capacity 460 Matter Stores 300 Matter Capacity 300 Sight Range 16 Robot Scan Range 14 Terrain Scan Density 10 Armor Coverage 300 Propulsion Shielding 33 Weapon Shielding 66 Evasion (%) 63 Recoil Reduction 14 Item Schematics ----------------- Grenade Launcher | -9/Materials | Scanalyzed Imp. Treads | -8/Materials | Scanalyzed Robot Schematics ------------------ None Fabricated ------------ Nothing Alien Tech Used ----------------- None Achievements -------------- Maybe Next Time I'll Detach My Launcher Challenges ------------ None Game ------ Seed MagneticRocketTearclaws Manual? 0 Play Time 00:38:20 Cumulative 12.7 hours Start 2024.08.06 @ 13:32:50 End 2024.09.01 @ 15:06:50 Sessions 10 Manual Loads 0 Difficulty Rogue Special Mode None Game No. 20 Rogue 20 Adventurer 0 Explorer 0 Win Type - Total 0 Types 0/0/0/0/0/0/0/0/0 Lore% 1 Gallery% 18 Achievement% 15 Wizard Run 0 Options --------- Layout 1 ASCII 0 Keyboard 1 Movement Numpad Keybinds 0 Fullscreen 2 Font 24/Smallcaps Map View 50x40 Zoom Use 6% Tactical HUD 1 Map Filters NONE Filters NONE Steam X RUN: 61e1c061-0bc0-42dd-af18-adf0493a24dc